Workbook

Sheet Sheet2
A1: 纳雍县2023年第二批面向社会公开招聘城市社区工作者面试、总成绩及进入体检人员名单
A2: 岗位代码 | B2: 岗位名称 | C2: 招聘单位 | D2: 姓名 | E2: 性别 | F2: 笔试准考 证号 | G2: 笔试成绩 | H2: 笔试成绩折算（60%） | I2: 面试考场 | J2: 面试抽签号 | K2: 面试成绩 | L2: 面试成绩折算（40%） | M2: 总成绩 | N2: 总成绩岗位内排名 | O2: 是否进入体检 | P2: 备注
A3: 01 | B3: 专职网格员 | C3: 纳雍县利园街道 | D3: 严凯 | E3: 男 | F3: 202311703 | G3: 75.77 | H3: =G3*0.6 -> 45.46 | I3: 第一面试室 | J3: 14 | K3: 74.64 | L3: =K3*0.4 -> 29.86 | M3: =H3+L3 -> 75.32 | N3: 1 | O3: 是
A4: 01 | B4: 专职网格员 | C4: 纳雍县利园街道 | D4: 陈云 | E4: 男 | F4: 202311429 | G4: 71.55 | H4: 42.93 | I4: 第一面试室 | J4: 3 | K4: 80.42 | L4: 32.17 | M4: 75.10 | N4: 2 | O4: 是
A5: 01 | B5: 专职网格员 | C5: 纳雍县利园街道 | D5: 蔡金桓 | E5: 女 | F5: 202311430 | G5: 77.34 | H5: 46.40 | I5: 第一面试室 | J5: 12 | K5: 69.62 | L5: 27.85 | M5: 74.25 | N5: 3 | O5: 是
A6: 01 | B6: 专职网格员 | C6: 纳雍县利园街道 | D6: 杨草 | E6: 女 | F6: 202311111 | G6: 72.24 | H6: 43.34 | I6: 第一面试室 | J6: 9 | K6: 74.76 | L6: 29.90 | M6: 73.25 | N6: 4 | O6: 是
A7: 01 | B7: 专职网格员 | C7: 纳雍县利园街道 | D7: 彭雄 | E7: 男 | F7: 202310716 | G7: 71.78 | H7: 43.07 | I7: 第一面试室 | J7: 6 | K7: 75.16 | L7: 30.06 | M7: 73.13 | N7: 5 | O7: 是
A8: 01 | B8: 专职网格员 | C8: 纳雍县利园街道 | D8: 宋丹丹 | E8: 女 | F8: 202311709 | G8: 71.99 | H8: 43.19 | I8: 第一面试室 | J8: 15 | K8: 74.56 | L8: 29.82 | M8: 73.02 | N8: 6 | O8: 是
A9: 01 | B9: 专职网格员 | C9: 纳雍县利园街道 | D9: 李敏 | E9: 女 | F9: 202310526 | G9: 70.94 | H9: 42.56 | I9: 第一面试室 | J9: 4 | K9: 74.20 | L9: 29.68 | M9: 72.24 | N9: 7 | O9: 是
A10: 01 | B10: 专职网格员 | C10: 纳雍县利园街道 | D10: 何元义 | E10: 男 | F10: 202310426 | G10: 67.47 | H10: 40.48 | I10: 第一面试室 | J10: 21 | K10: 76.88 | L10: 30.75 | M10: 71.23
A11: 01 | B11: 专职网格员 | C11: 纳雍县利园街道 | D11: 陈鑫 | E11: 男 | F11: 202310326 | G11: 67.46 | H11: 40.48 | I11: 第一面试室 | J11: 19 | K11: 75.58 | L11: 30.23 | M11: 70.71
A12: 01 | B12: 专职网格员 | C12: 纳雍县利园街道 | D12: 刘子维 | E12: 女 | F12: 202310613 | G12: 70.68 | H12: 42.41 | I12: 第一面试室 | J12: 7 | K12: 69.44 | L12: 27.78 | M12: 70.18
A13: 01 | B13: 专职网格员 | C13: 纳雍县利园街道 | D13: 蒙照先 | E13: 女 | F13: 202311722 | G13: 67.33 | H13: 40.40 | I13: 第一面试室 | J13: 1 | K13: 72.20 | L13: 28.88 | M13: 69.28
A14: 01 | B14: 专职网格员 | C14: 纳雍县利园街道 | D14: 朱倩 | E14: 女 | F14: 202310627 | G14: 65.85 | H14: 39.51 | I14: 第一面试室 | J14: 8 | K14: 74.13 | L14: 29.65 | M14: 69.16
A15: 01 | B15: 专职网格员 | C15: 纳雍县利园街道 | D15: 王雲 | E15: 女 | F15: 202311002 | G15: 65.77 | H15: 39.46 | I15: 第一面试室 | J15: 16 | K15: 73.10 | L15: 29.24 | M15: 68.70
A16: 01 | B16: 专职网格员 | C16: 纳雍县利园街道 | D16: 郝丹 | E16: 女 | F16: 202310401 | G16: 65.73 | H16: 39.44 | I16: 第一面试室 | J16: 20 | K16: 72.76 | L16: 29.10 | M16: 68.54
A17: 01 | B17: 专职网格员 | C17: 纳雍县利园街道 | D17: 蔡艳 | E17: 女 | F17: 202311029 | G17: 69.40 | H17: 41.64 | I17: 第一面试室 | J17: 11 | K17: 66.22 | L17: 26.49 | M17: 68.13
A18: 01 | B18: 专职网格员 | C18: 纳雍县利园街道 | D18: 卢艳飞 | E18: 女 | F18: 202311417 | G18: 67.28 | H18: 40.37 | I18: 第一面试室 | J18: 18 | K18: 68.92 | L18: 27.57 | M18: 67.94
A19: 01 | B19: 专职网格员 | C19: 纳雍县利园街道 | D19: 王丘 | E19: 女 | F19: 202310620 | G19: 66.40 | H19: 39.84 | I19: 第一面试室 | J19: 17 | K19: 68.28 | L19: 27.31 | M19: 67.15
A20: 01 | B20: 专职网格员 | C20: 纳雍县利园街道 | D20: 吕华 | E20: 女 | F20: 202310424 | G20: 68.40 | H20: 41.04 | I20: 第一面试室 | J20: 2 | K20: 64.80 | L20: 25.92 | M20: 66.96
A21: 01 | B21: 专职网格员 | C21: 纳雍县利园街道 | D21: 唐贵峰 | E21: 男 | F21: 202311911 | G21: 66.83 | H21: 40.10 | I21: 第一面试室 | J21: 10 | K21: 67.05 | L21: 26.82 | M21: 66.92
A22: 01 | B22: 专职网格员 | C22: 纳雍县利园街道 | D22: 方英雄 | E22: 男 | F22: 202310303 | G22: 65.89 | H22: 39.53 | I22: 第一面试室 | J22: 13 | K22: 67.61 | L22: 27.04 | M22: 66.58
A23: 01 | B23: 专职网格员 | C23: 纳雍县利园街道 | D23: 尤祥 | E23: 男 | F23: 202311108 | G23: 67.68 | H23: 40.61 | I23: 第一面试室 | J23: 5 | K23: 64.80 | L23: 25.92 | M23: 66.53
A24: 02 | B24: 专职网格员 | C24: 纳雍县文昌街道 | D24: 王紫毅 | E24: 男 | F24: 202311410 | G24: 76.67 | H24: 46.00 | I24: 第二面试室 | J24: 25 | K24: 77.61 | L24: 31.04 | M24: 77.05 | N24: 1 | O24: 是
A25: 02 | B25: 专职网格员 | C25: 纳雍县文昌街道 | D25: 陈玲 | E25: 女 | F25: 202311519 | G25: 74.55 | H25: 44.73 | I25: 第二面试室 | J25: 8 | K25: 80.15 | L25: 32.06 | M25: 76.79 | N25: 2 | O25: 是
A26: 02 | B26: 专职网格员 | C26: 纳雍县文昌街道 | D26: 方遒 | E26: 男 | F26: 202311027 | G26: 69.61 | H26: 41.77 | I26: 第二面试室 | J26: 13 | K26: 85.34 | L26: 34.14 | M26: 75.90 | N26: 3 | O26: 是
A27: 02 | B27: 专职网格员 | C27: 纳雍县文昌街道 | D27: 张应江 | E27: 男 | F27: 202310201 | G27: 73.40 | H27: 44.04 | I27: 第二面试室 | J27: 7 | K27: 79.53 | L27: 31.81 | M27: 75.85 | N27: 4 | O27: 是
A28: 02 | B28: 专职网格员 | C28: 纳雍县文昌街道 | D28: 张波 | E28: 男 | F28: 202311909 | G28: 74.22 | H28: 44.53 | I28: 第二面试室 | J28: 34 | K28: 77.35 | L28: 30.94 | M28: 75.47 | N28: 5 | O28: 是
A29: 02 | B29: 专职网格员 | C29: 纳雍县文昌街道 | D29: 郝微 | E29: 女 | F29: 202310415 | G29: 76.38 | H29: 45.83 | I29: 第二面试室 | J29: 14 | K29: 73.84 | L29: 29.54 | M29: 75.36 | N29: 6 | O29: 是
A30: 02 | B30: 专职网格员 | C30: 纳雍县文昌街道 | D30: 陈小映 | E30: 女 | F30: 202312016 | G30: 70.52 | H30: 42.31 | I30: 第二面试室 | J30: 38 | K30: 81.11 | L30: 32.44 | M30: 74.76 | N30: 7 | O30: 是
A31: 02 | B31: 专职网格员 | C31: 纳雍县文昌街道 | D31: 郭凤香 | E31: 女 | F31: 202311505 | G31: 71.57 | H31: 42.94 | I31: 第二面试室 | J31: 39 | K31: 79.40 | L31: 31.76 | M31: 74.70 | N31: 8 | O31: 是
A32: 02 | B32: 专职网格员 | C32: 纳雍县文昌街道 | D32: 彭啟敏 | E32: 女 | F32: 202311025 | G32: 69.84 | H32: 41.90 | I32: 第二面试室 | J32: 18 | K32: 81.79 | L32: 32.72 | M32: 74.62 | N32: 9 | O32: 是
A33: 02 | B33: 专职网格员 | C33: 纳雍县文昌街道 | D33: 徐晓艳 | E33: 女 | F33: 202311030 | G33: 72.67 | H33: 43.60 | I33: 第二面试室 | J33: 31 | K33: 77.51 | L33: 31.00 | M33: 74.61 | N33: 10 | O33: 是
A34: 02 | B34: 专职网格员 | C34: 纳雍县文昌街道 | D34: 勾元甲 | E34: 男 | F34: 202310107 | G34: 68.07 | H34: 40.84 | I34: 第二面试室 | J34: 3 | K34: 83.11 | L34: 33.24 | M34: 74.09 | N34: 11 | O34: 是
A35: 02 | B35: 专职网格员 | C35: 纳雍县文昌街道 | D35: 郭会 | E35: 女 | F35: 202310709 | G35: 71.38 | H35: 42.83 | I35: 第二面试室 | J35: 24 | K35: 77.96 | L35: 31.18 | M35: 74.01 | N35: 12 | O35: 是
A36: 02 | B36: 专职网格员 | C36: 纳雍县文昌街道 | D36: 熊进 | E36: 男 | F36: 202311916 | G36: 74.01 | H36: 44.41 | I36: 第二面试室 | J36: 27 | K36: 73.68 | L36: 29.47 | M36: 73.88 | N36: 13 | O36: 是
A37: 02 | B37: 专职网格员 | C37: 纳雍县文昌街道 | D37: 杨红霞 | E37: 女 | F37: 202310724 | G37: 72.01 | H37: 43.21 | I37: 第二面试室 | J37: 4 | K37: 76.54 | L37: 30.62 | M37: 73.82
A38: 02 | B38: 专职网格员 | C38: 纳雍县文昌街道 | D38: 蒙妮 | E38: 女 | F38: 202311701 | G38: 69.39 | H38: 41.63 | I38: 第二面试室 | J38: 32 | K38: 79.29 | L38: 31.72 | M38: 73.35
A39: 02 | B39: 专职网格员 | C39: 纳雍县文昌街道 | D39: 颜丽修 | E39: 女 | F39: 202311211 | G39: 66.00 | H39: 39.60 | I39: 第二面试室 | J39: 21 | K39: 82.69 | L39: 33.08 | M39: 72.68
A40: 02 | B40: 专职网格员 | C40: 纳雍县文昌街道 | D40: 卢丁 | E40: 男 | F40: 202311509 | G40: 67.78 | H40: 40.67 | I40: 第二面试室 | J40: 19 | K40: 79.41 | L40: 31.76 | M40: 72.43
A41: 02 | B41: 专职网格员 | C41: 纳雍县文昌街道 | D41: 白涛 | E41: 男 | F41: 202311807 | G41: 69.29 | H41: 41.57 | I41: 第二面试室 | J41: 22 | K41: 76.44 | L41: 30.58 | M41: 72.15
A42: 02 | B42: 专职网格员 | C42: 纳雍县文昌街道 | D42: 郭丽佳 | E42: 女 | F42: 202311328 | G42: 67.02 | H42: 40.21 | I42: 第二面试室 | J42: 20 | K42: 78.07 | L42: 31.23 | M42: 71.44
A43: 02 | B43: 专职网格员 | C43: 纳雍县文昌街道 | D43: 赵玉 | E43: 女 | F43: 202311021 | G43: 65.45 | H43: 39.27 | I43: 第二面试室 | J43: 33 | K43: 79.64 | L43: 31.86 | M43: 71.13
A44: 02 | B44: 专职网格员 | C44: 纳雍县文昌街道 | D44: 杨平 | E44: 女 | F44: 202311720 | G44: 66.01 | H44: 39.61 | I44: 第二面试室 | J44: 29 | K44: 77.68 | L44: 31.07 | M44: 70.68
A45: 02 | B45: 专职网格员 | C45: 纳雍县文昌街道 | D45: 胡镜 | E45: 女 | F45: 202311610 | G45: 75.28 | H45: 45.17 | I45: 第二面试室 | J45: 5 | K45: 63.49 | L45: 25.40 | M45: 70.56
A46: 02 | B46: 专职网格员 | C46: 纳雍县文昌街道 | D46: 王青青 | E46: 女 | F46: 202311623 | G46: 66.57 | H46: 39.94 | I46: 第二面试室 | J46: 16 | K46: 76.33 | L46: 30.53 | M46: 70.47
A47: 02 | B47: 专职网格员 | C47: 纳雍县文昌街道 | D47: 何尧 | E47: 男 | F47: 202310928 | G47: 66.67 | H47: 40.00 | I47: 第二面试室 | J47: 6 | K47: 75.67 | L47: 30.27 | M47: 70.27
A48: 02 | B48: 专职网格员 | C48: 纳雍县文昌街道 | D48: 何磊 | E48: 男 | F48: 202311805 | G48: 65.07 | H48: 39.04 | I48: 第二面试室 | J48: 10 | K48: 77.23 | L48: 30.89 | M48: 69.93
A49: 02 | B49: 专职网格员 | C49: 纳雍县文昌街道 | D49: 陈万舜 | E49: 男 | F49: 202310513 | G49: 71.19 | H49: 42.71 | I49: 第二面试室 | J49: 17 | K49: 67.82 | L49: 27.13 | M49: 69.84
A50: 02 | B50: 专职网格员 | C50: 纳雍县文昌街道 | D50: 陈琪琪 | E50: 女 | F50: 202310528 | G50: 67.46 | H50: 40.48 | I50: 第二面试室 | J50: 11 | K50: 71.56 | L50: 28.62 | M50: 69.10
A51: 02 | B51: 专职网格员 | C51: 纳雍县文昌街道 | D51: 罗寻欢 | E51: 女 | F51: 202310818 | G51: 65.83 | H51: 39.50 | I51: 第二面试室 | J51: 37 | K51: 73.85 | L51: 29.54 | M51: 69.04
A52: 02 | B52: 专职网格员 | C52: 纳雍县文昌街道 | D52: 李亚馨 | E52: 女 | F52: 202310908 | G52: 65.96 | H52: 39.58 | I52: 第二面试室 | J52: 1 | K52: 73.41 | L52: 29.36 | M52: 68.94
A53: 02 | B53: 专职网格员 | C53: 纳雍县文昌街道 | D53: 杨明 | E53: 男 | F53: 202311106 | G53: 72.72 | H53: 43.63 | I53: 第二面试室 | J53: 30 | K53: 60.77 | L53: 24.31 | M53: 67.94
A54: 02 | B54: 专职网格员 | C54: 纳雍县文昌街道 | D54: 李琳 | E54: 女 | F54: 202311005 | G54: 65.57 | H54: 39.34 | I54: 第二面试室 | J54: 2 | K54: 70.05 | L54: 28.02 | M54: 67.36
A55: 02 | B55: 专职网格员 | C55: 纳雍县文昌街道 | D55: 陈娅 | E55: 女 | F55: 202311522 | G55: 68.66 | H55: 41.20 | I55: 第二面试室 | J55: 23 | K55: 63.90 | L55: 25.56 | M55: 66.76
A56: 02 | B56: 专职网格员 | C56: 纳雍县文昌街道 | D56: 陈茜 | E56: 女 | F56: 202310510 | G56: 65.50 | H56: 39.30 | I56: 第二面试室 | J56: 15 | K56: 67.81 | L56: 27.12 | M56: 66.42
A57: 02 | B57: 专职网格员 | C57: 纳雍县文昌街道 | D57: 杨兰 | E57: 女 | F57: 202310412 | G57: 66.68 | H57: 40.01 | I57: 第二面试室 | J57: 9 | K57: 64.90 | L57: 25.96 | M57: 65.97
A58: 02 | B58: 专职网格员 | C58: 纳雍县文昌街道 | D58: 汪星月 | E58: 女 | F58: 202310611 | G58: 65.29 | H58: 39.17 | I58: 第二面试室 | J58: 35 | K58: 66.45 | L58: 26.58 | M58: 65.75
A59: 02 | B59: 专职网格员 | C59: 纳雍县文昌街道 | D59: 陈煜 | E59: 男 | F59: 202310717 | G59: 75.05 | H59: 45.03 | I59: 第二面试室 | K59: 0.00 | L59: 0.00 | M59: 45.03 | P59: 面试缺考
A60: 02 | B60: 专职网格员 | C60: 纳雍县文昌街道 | D60: 张丽 | E60: 女 | F60: 202310409 | G60: 70.57 | H60: 42.34 | I60: 第二面试室 | K60: 0.00 | L60: 0.00 | M60: 42.34 | P60: 面试缺考
A61: 02 | B61: 专职网格员 | C61: 纳雍县文昌街道 | D61: 龙奎 | E61: 男 | F61: 202311103 | G61: 68.00 | H61: 40.80 | I61: 第二面试室 | K61: 0.00 | L61: 0.00 | M61: 40.80 | P61: 面试缺考
A62: 02 | B62: 专职网格员 | C62: 纳雍县文昌街道 | D62: 周建 | E62: 男 | F62: 202310809 | G62: 65.95 | H62: 39.57 | I62: 第二面试室 | K62: 0.00 | L62: 0.00 | M62: 39.57 | P62: 面试缺考
A63: 03 | B63: 专职网格员 | C63: 纳雍县居仁街道 | D63: 朱顺云 | E63: 男 | F63: 202311806 | G63: 72.56 | H63: 43.54 | I63: 第三面试室 | J63: 21 | K63: 78.70 | L63: 31.48 | M63: 75.02 | N63: 1 | O63: 是
A64: 03 | B64: 专职网格员 | C64: 纳雍县居仁街道 | D64: 谭里雲 | E64: 女 | F64: 202311401 | G64: 72.35 | H64: 43.41 | I64: 第三面试室 | J64: 15 | K64: 77.22 | L64: 30.89 | M64: 74.30 | N64: 2 | O64: 是
A65: 03 | B65: 专职网格员 | C65: 纳雍县居仁街道 | D65: 张亚 | E65: 男 | F65: 202312010 | G65: 67.46 | H65: 40.48 | I65: 第三面试室 | J65: 9 | K65: 81.46 | L65: 32.58 | M65: 73.06 | N65: 3 | O65: 是
A66: 03 | B66: 专职网格员 | C66: 纳雍县居仁街道 | D66: 卢倩 | E66: 女 | F66: 202310110 | G66: 70.51 | H66: 42.31 | I66: 第三面试室 | J66: 10 | K66: 74.00 | L66: 29.60 | M66: 71.91 | N66: 4 | O66: 是
A67: 03 | B67: 专职网格员 | C67: 纳雍县居仁街道 | D67: 周超 | E67: 男 | F67: 202310607 | G67: 68.01 | H67: =G67*0.6 -> 40.81 | I67: 第三面试室 | J67: 3 | K67: 76.80 | L67: =K67*0.4 -> 30.72 | M67: =H67+L67 -> 71.53 | N67: 5 | O67: 是
A68: 03 | B68: 专职网格员 | C68: 纳雍县居仁街道 | D68: 李玉峰 | E68: 女 | F68: 202311120 | G68: 64.85 | H68: 38.91 | I68: 第三面试室 | J68: 4 | K68: 79.70 | L68: 31.88 | M68: 70.79 | N68: 6 | O68: 是
A69: 03 | B69: 专职网格员 | C69: 纳雍县居仁街道 | D69: 邓青 | E69: 女 | F69: 202311024 | G69: 61.78 | H69: 37.07 | I69: 第三面试室 | J69: 16 | K69: 81.96 | L69: 32.78 | M69: 69.85 | N69: 7 | O69: 是
A70: 03 | B70: 专职网格员 | C70: 纳雍县居仁街道 | D70: 谭超 | E70: 男 | F70: 202310727 | G70: 64.22 | H70: 38.53 | I70: 第三面试室 | J70: 19 | K70: 77.00 | L70: 30.80 | M70: 69.33
A71: 03 | B71: 专职网格员 | C71: 纳雍县居仁街道 | D71: 宋程 | E71: 男 | F71: 202310129 | G71: 64.46 | H71: 38.68 | I71: 第三面试室 | J71: 1 | K71: 74.10 | L71: 29.64 | M71: 68.32
A72: 03 | B72: 专职网格员 | C72: 纳雍县居仁街道 | D72: 朱小雪 | E72: 女 | F72: 202311611 | G72: 62.23 | H72: 37.34 | I72: 第三面试室 | J72: 6 | K72: 75.50 | L72: 30.20 | M72: 67.54
A73: 03 | B73: 专职网格员 | C73: 纳雍县居仁街道 | D73: 伍小飞 | E73: 女 | F73: 202310109 | G73: 63.73 | H73: 38.24 | I73: 第三面试室 | J73: 14 | K73: 73.00 | L73: 29.20 | M73: 67.44
A74: 03 | B74: 专职网格员 | C74: 纳雍县居仁街道 | D74: 刘立 | E74: 女 | F74: 202311115 | G74: 61.90 | H74: 37.14 | I74: 第三面试室 | J74: 5 | K74: 75.70 | L74: 30.28 | M74: 67.42
A75: 03 | B75: 专职网格员 | C75: 纳雍县居仁街道 | D75: 朱小余 | E75: 女 | F75: 202311518 | G75: 63.28 | H75: 37.97 | I75: 第三面试室 | J75: 8 | K75: 71.90 | L75: 28.76 | M75: 66.73
A76: 03 | B76: 专职网格员 | C76: 纳雍县居仁街道 | D76: 李小燕 | E76: 女 | F76: 202311823 | G76: 59.89 | H76: 35.93 | I76: 第三面试室 | J76: 20 | K76: 76.80 | L76: 30.72 | M76: 66.65
A77: 03 | B77: 专职网格员 | C77: 纳雍县居仁街道 | D77: 周富 | E77: 男 | F77: 202311723 | G77: 59.18 | H77: 35.51 | I77: 第三面试室 | J77: 18 | K77: 76.91 | L77: 30.76 | M77: 66.27
A78: 03 | B78: 专职网格员 | C78: 纳雍县居仁街道 | D78: 杨城 | E78: 男 | F78: 202311915 | G78: 56.85 | H78: 34.11 | I78: 第三面试室 | J78: 11 | K78: 74.90 | L78: 29.96 | M78: 64.07
A79: 03 | B79: 专职网格员 | C79: 纳雍县居仁街道 | D79: 江文艳 | E79: 女 | F79: 202310703 | G79: 56.80 | H79: 34.08 | I79: 第三面试室 | J79: 7 | K79: 74.94 | L79: 29.98 | M79: 64.06
A80: 03 | B80: 专职网格员 | C80: 纳雍县居仁街道 | D80: 朱娜娜 | E80: 女 | F80: 202310222 | G80: 60.68 | H80: 36.41 | I80: 第三面试室 | K80: 0.00 | L80: 0.00 | M80: 36.41 | P80: 面试缺考
A81: 03 | B81: 专职网格员 | C81: 纳雍县居仁街道 | D81: 晏发举 | E81: 男 | F81: 202310612 | G81: 60.67 | H81: 36.40 | I81: 第三面试室 | K81: 0.00 | L81: 0.00 | M81: 36.40 | P81: 面试缺考
A82: 03 | B82: 专职网格员 | C82: 纳雍县居仁街道 | D82: 杨益 | E82: 女 | F82: 202310214 | G82: 59.63 | H82: 35.78 | I82: 第三面试室 | K82: 0.00 | L82: 0.00 | M82: 35.78 | P82: 面试缺考
A83: 03 | B83: 专职网格员 | C83: 纳雍县居仁街道 | D83: 李浪 | E83: 男 | F83: 202311927 | G83: 56.89 | H83: 34.13 | I83: 第三面试室 | K83: 0.00 | L83: 0.00 | M83: 34.13 | P83: 面试缺考
A84: 04 | B84: 专职网格员 | C84: 纳雍县珙桐街道 | D84: 杨莎 | E84: 女 | F84: 202311912 | G84: 70.40 | H84: 42.24 | I84: 第三面试室 | J84: 22 | K84: 81.34 | L84: 32.54 | M84: 74.78 | N84: 1 | O84: 是
A85: 04 | B85: 专职网格员 | C85: 纳雍县珙桐街道 | D85: 陈芳芳 | E85: 女 | F85: 202310108 | G85: 70.01 | H85: 42.01 | I85: 第三面试室 | J85: 27 | K85: 79.80 | L85: 31.92 | M85: 73.93 | N85: 2 | O85: 是
A86: 04 | B86: 专职网格员 | C86: 纳雍县珙桐街道 | D86: 李智 | E86: 男 | F86: 202310721 | G86: 70.28 | H86: 42.17 | I86: 第三面试室 | J86: 31 | K86: 76.50 | L86: 30.60 | M86: 72.77 | N86: 3 | O86: 是
A87: 04 | B87: 专职网格员 | C87: 纳雍县珙桐街道 | D87: 潘海 | E87: 男 | F87: 202311405 | G87: 66.11 | H87: 39.67 | I87: 第三面试室 | J87: 32 | K87: 81.36 | L87: 32.54 | M87: 72.21 | N87: 4 | O87: 是
A88: 04 | B88: 专职网格员 | C88: 纳雍县珙桐街道 | D88: 陆维 | E88: 女 | F88: 202311301 | G88: 67.44 | H88: 40.46 | I88: 第三面试室 | J88: 26 | K88: 79.34 | L88: 31.74 | M88: 72.20 | N88: 5 | O88: 是
A89: 04 | B89: 专职网格员 | C89: 纳雍县珙桐街道 | D89: 黄儒剑 | E89: 男 | F89: 202310511 | G89: 67.90 | H89: 40.74 | I89: 第三面试室 | J89: 34 | K89: 77.54 | L89: 31.02 | M89: 71.76 | N89: 6 | O89: 是
A90: 04 | B90: 专职网格员 | C90: 纳雍县珙桐街道 | D90: 方依 | E90: 女 | F90: 202310407 | G90: 66.28 | H90: 39.77 | I90: 第三面试室 | J90: 38 | K90: 79.70 | L90: 31.88 | M90: 71.65
A91: 04 | B91: 专职网格员 | C91: 纳雍县珙桐街道 | D91: 陈悦 | E91: 女 | F91: 202311323 | G91: 66.11 | H91: 39.67 | I91: 第三面试室 | J91: 37 | K91: 78.32 | L91: 31.33 | M91: 70.99
A92: 04 | B92: 专职网格员 | C92: 纳雍县珙桐街道 | D92: 韩倩 | E92: 女 | F92: 202311626 | G92: 66.23 | H92: 39.74 | I92: 第三面试室 | J92: 39 | K92: 76.00 | L92: 30.40 | M92: 70.14
A93: 04 | B93: 专职网格员 | C93: 纳雍县珙桐街道 | D93: 陈丹丹 | E93: 女 | F93: 202311107 | G93: 64.79 | H93: 38.87 | I93: 第三面试室 | J93: 29 | K93: 78.10 | L93: 31.24 | M93: 70.11
A94: 04 | B94: 专职网格员 | C94: 纳雍县珙桐街道 | D94: 张应春 | E94: 女 | F94: 202311122 | G94: 64.51 | H94: 38.71 | I94: 第三面试室 | J94: 30 | K94: 76.70 | L94: 30.68 | M94: 69.39
A95: 04 | B95: 专职网格员 | C95: 纳雍县珙桐街道 | D95: 尚雨琳 | E95: 女 | F95: 202311218 | G95: 62.84 | H95: 37.70 | I95: 第三面试室 | J95: 36 | K95: 78.52 | L95: 31.41 | M95: 69.11
A96: 04 | B96: 专职网格员 | C96: 纳雍县珙桐街道 | D96: 王曌 | E96: 女 | F96: 202310419 | G96: 62.29 | H96: 37.37 | I96: 第三面试室 | J96: 33 | K96: 76.06 | L96: 30.42 | M96: 67.80
A97: 04 | B97: 专职网格员 | C97: 纳雍县珙桐街道 | D97: 张云雪 | E97: 女 | F97: 202311513 | G97: 63.62 | H97: 38.17 | I97: 第三面试室 | J97: 24 | K97: 73.80 | L97: 29.52 | M97: 67.69
A98: 04 | B98: 专职网格员 | C98: 纳雍县珙桐街道 | D98: 王玥 | E98: 女 | F98: 202310225 | G98: 63.13 | H98: 37.88 | I98: 第三面试室 | J98: 25 | K98: 74.50 | L98: 29.80 | M98: 67.68
A99: 04 | B99: 专职网格员 | C99: 纳雍县珙桐街道 | D99: 曾蝶 | E99: 女 | F99: 202310309 | G99: 64.79 | H99: 38.87 | I99: 第三面试室 | K99: 0.00 | L99: 0.00 | M99: 38.87 | P99: 面试缺考
A100: 04 | B100: 专职网格员 | C100: 纳雍县珙桐街道 | D100: 杨红 | E100: 男 | F100: 202310517 | G100: 63.50 | H100: 38.10 | I100: 第三面试室 | K100: 0.00 | L100: 0.00 | M100: 38.10 | P100: 面试缺考
A101: 04 | B101: 专职网格员 | C101: 纳雍县珙桐街道 | D101: 向兴林 | E101: 男 | F101: 202311608 | G101: 63.50 | H101: 38.10 | I101: 第三面试室 | K101: 0.00 | L101: 0.00 | M101: 38.10 | P101: 面试缺考
A102: 05 | B102: 专职网格员 | C102: 纳雍县宣慰街道 | D102: 王梦青 | E102: 女 | F102: 202310926 | G102: 76.22 | H102: 45.73 | I102: 第四面试室 | J102: 32 | K102: 80.60 | L102: 32.24 | M102: 77.97 | N102: 1 | O102: 是
A103: 05 | B103: 专职网格员 | C103: 纳雍县宣慰街道 | D103: 陈文梅 | E103: 女 | F103: 202310617 | G103: 75.33 | H103: 45.20 | I103: 第四面试室 | J103: 12 | K103: 80.60 | L103: 32.24 | M103: 77.44 | N103: 2 | O103: 是
A104: 05 | B104: 专职网格员 | C104: 纳雍县宣慰街道 | D104: 何莎 | E104: 女 | F104: 202311117 | G104: 68.89 | H104: 41.33 | I104: 第四面试室 | J104: 16 | K104: 86.40 | L104: 34.56 | M104: 75.89 | N104: 3 | O104: 是
A105: 05 | B105: 专职网格员 | C105: 纳雍县宣慰街道 | D105: 郭加健 | E105: 男 | F105: 202310312 | G105: 71.55 | H105: 42.93 | I105: 第四面试室 | J105: 9 | K105: 82.00 | L105: 32.80 | M105: 75.73 | N105: 4 | O105: 是
A106: 05 | B106: 专职网格员 | C106: 纳雍县宣慰街道 | D106: 唐雷 | E106: 男 | F106: 202311418 | G106: 71.06 | H106: 42.64 | I106: 第四面试室 | J106: 8 | K106: 80.60 | L106: 32.24 | M106: 74.88 | N106: 5 | O106: 是
A107: 05 | B107: 专职网格员 | C107: 纳雍县宣慰街道 | D107: 宋涛 | E107: 男 | F107: 202310624 | G107: 67.25 | H107: 40.35 | I107: 第四面试室 | J107: 3 | K107: 85.80 | L107: 34.32 | M107: 74.67 | N107: 6 | O107: 是
A108: 05 | B108: 专职网格员 | C108: 纳雍县宣慰街道 | D108: 何建 | E108: 男 | F108: 202311826 | G108: 69.40 | H108: 41.64 | I108: 第四面试室 | J108: 5 | K108: 81.00 | L108: 32.40 | M108: 74.04 | N108: 7 | O108: 是
A109: 05 | B109: 专职网格员 | C109: 纳雍县宣慰街道 | D109: 陈丽娟 | E109: 女 | F109: 202311606 | G109: 66.24 | H109: 39.74 | I109: 第四面试室 | J109: 24 | K109: 85.60 | L109: 34.24 | M109: 73.98 | N109: 8 | O109: 是
A110: 05 | B110: 专职网格员 | C110: 纳雍县宣慰街道 | D110: 潘香 | E110: 女 | F110: 202311929 | G110: 68.84 | H110: 41.30 | I110: 第四面试室 | J110: 18 | K110: 81.40 | L110: 32.56 | M110: 73.86 | N110: 9 | O110: 是
A111: 05 | B111: 专职网格员 | C111: 纳雍县宣慰街道 | D111: 杜婷 | E111: 女 | F111: 202310403 | G111: 66.90 | H111: 40.14 | I111: 第四面试室 | J111: 25 | K111: 83.40 | L111: 33.36 | M111: 73.50 | N111: 10 | O111: 是
A112: 05 | B112: 专职网格员 | C112: 纳雍县宣慰街道 | D112: 宋娇娇 | E112: 女 | F112: 202310305 | G112: 66.34 | H112: 39.80 | I112: 第四面试室 | J112: 10 | K112: 84.00 | L112: 33.60 | M112: 73.40 | N112: 11 | O112: 是
A113: 05 | B113: 专职网格员 | C113: 纳雍县宣慰街道 | D113: 许宗玉 | E113: 女 | F113: 202311526 | G113: 67.23 | H113: 40.34 | I113: 第四面试室 | J113: 23 | K113: 80.40 | L113: 32.16 | M113: 72.50 | N113: 12 | O113: 是
A114: 05 | B114: 专职网格员 | C114: 纳雍县宣慰街道 | D114: 张双 | E114: 女 | F114: 202311614 | G114: 70.01 | H114: 42.01 | I114: 第四面试室 | J114: 20 | K114: 76.00 | L114: 30.40 | M114: 72.41
A115: 05 | B115: 专职网格员 | C115: 纳雍县宣慰街道 | D115: 刘双慧 | E115: 女 | F115: 202310909 | G115: 67.50 | H115: 40.50 | I115: 第四面试室 | J115: 1 | K115: 79.00 | L115: 31.60 | M115: 72.10
A116: 05 | B116: 专职网格员 | C116: 纳雍县宣慰街道 | D116: 徐龙江 | E116: 男 | F116: 202310418 | G116: 65.23 | H116: 39.14 | I116: 第四面试室 | J116: 4 | K116: 81.80 | L116: 32.72 | M116: 71.86
A117: 05 | B117: 专职网格员 | C117: 纳雍县宣慰街道 | D117: 夏蓉 | E117: 女 | F117: 202311914 | G117: 65.18 | H117: 39.11 | I117: 第四面试室 | J117: 11 | K117: 81.40 | L117: 32.56 | M117: 71.67
A118: 05 | B118: 专职网格员 | C118: 纳雍县宣慰街道 | D118: 高伟 | E118: 男 | F118: 202312017 | G118: 67.12 | H118: 40.27 | I118: 第四面试室 | J118: 21 | K118: 75.20 | L118: 30.08 | M118: 70.35
A119: 05 | B119: 专职网格员 | C119: 纳雍县宣慰街道 | D119: 章煜彤 | E119: 女 | F119: 202311828 | G119: 61.84 | H119: 37.10 | I119: 第四面试室 | J119: 6 | K119: 82.80 | L119: 33.12 | M119: 70.22
A120: 05 | B120: 专职网格员 | C120: 纳雍县宣慰街道 | D120: 王婷婷 | E120: 女 | F120: 202311804 | G120: 63.35 | H120: 38.01 | I120: 第四面试室 | J120: 33 | K120: 79.40 | L120: 31.76 | M120: 69.77
A121: 05 | B121: 专职网格员 | C121: 纳雍县宣慰街道 | D121: 汪婷 | E121: 女 | F121: 202311129 | G121: 63.84 | H121: 38.30 | I121: 第四面试室 | J121: 35 | K121: 78.60 | L121: 31.44 | M121: 69.74
A122: 05 | B122: 专职网格员 | C122: 纳雍县宣慰街道 | D122: 王有甫 | E122: 男 | F122: 202311118 | G122: 66.33 | H122: 39.80 | I122: 第四面试室 | J122: 19 | K122: 74.20 | L122: 29.68 | M122: 69.48
A123: 05 | B123: 专职网格员 | C123: 纳雍县宣慰街道 | D123: 夏亚林 | E123: 男 | F123: 202310509 | G123: 64.89 | H123: 38.93 | I123: 第四面试室 | J123: 14 | K123: 76.00 | L123: 30.40 | M123: 69.33
A124: 05 | B124: 专职网格员 | C124: 纳雍县宣慰街道 | D124: 叶先宏 | E124: 男 | F124: 202310128 | G124: 64.88 | H124: 38.93 | I124: 第四面试室 | J124: 7 | K124: 75.40 | L124: 30.16 | M124: 69.09
A125: 05 | B125: 专职网格员 | C125: 纳雍县宣慰街道 | D125: 宋帮飞 | E125: 女 | F125: 202310729 | G125: 62.29 | H125: 37.37 | I125: 第四面试室 | J125: 36 | K125: 79.20 | L125: 31.68 | M125: 69.05
A126: 05 | B126: 专职网格员 | C126: 纳雍县宣慰街道 | D126: 何华 | E126: 男 | F126: 202310301 | G126: 66.55 | H126: 39.93 | I126: 第四面试室 | J126: 34 | K126: 72.60 | L126: 29.04 | M126: 68.97
A127: 05 | B127: 专职网格员 | C127: 纳雍县宣慰街道 | D127: 李倩 | E127: 女 | F127: 202311408 | G127: 64.41 | H127: 38.65 | I127: 第四面试室 | J127: 13 | K127: 75.60 | L127: 30.24 | M127: 68.89
A128: 05 | B128: 专职网格员 | C128: 纳雍县宣慰街道 | D128: 杨磊 | E128: 男 | F128: 202310824 | G128: 61.62 | H128: 36.97 | I128: 第四面试室 | J128: 15 | K128: 77.60 | L128: 31.04 | M128: 68.01
A129: 05 | B129: 专职网格员 | C129: 纳雍县宣慰街道 | D129: 胡嫚 | E129: 女 | F129: 202310304 | G129: 65.34 | H129: 39.20 | I129: 第四面试室 | J129: 2 | K129: 71.60 | L129: 28.64 | M129: 67.84
A130: 05 | B130: 专职网格员 | C130: 纳雍县宣慰街道 | D130: 杨姣 | E130: 女 | F130: 202310302 | G130: 60.79 | H130: 36.47 | I130: 第四面试室 | J130: 26 | K130: 76.00 | L130: 30.40 | M130: 66.87
A131: 05 | B131: 专职网格员 | C131: 纳雍县宣慰街道 | D131: 李雨芳 | E131: 女 | F131: 202310924 | G131: 60.57 | H131: =G131*0.6 -> 36.34 | I131: 第四面试室 | J131: 28 | K131: 75.00 | L131: =K131*0.4 -> 30.00 | M131: =H131+L131 -> 66.34
A132: 05 | B132: 专职网格员 | C132: 纳雍县宣慰街道 | D132: 岳蝶 | E132: 女 | F132: 202311520 | G132: 63.00 | H132: 37.80 | I132: 第四面试室 | J132: 29 | K132: 70.00 | L132: 28.00 | M132: 65.80
A133: 05 | B133: 专职网格员 | C133: 纳雍县宣慰街道 | D133: 张艳红 | E133: 男 | F133: 202311202 | G133: 60.73 | H133: 36.44 | I133: 第四面试室 | J133: 31 | K133: 70.00 | L133: 28.00 | M133: 64.44
A134: 05 | B134: 专职网格员 | C134: 纳雍县宣慰街道 | D134: 徐海蝶 | E134: 女 | F134: 202311309 | G134: 60.41 | H134: 36.25 | I134: 第四面试室 | J134: 30 | K134: 70.00 | L134: 28.00 | M134: 64.25
A135: 05 | B135: 专职网格员 | C135: 纳雍县宣慰街道 | D135: 张丹 | E135: 女 | F135: 202310616 | G135: 64.51 | H135: 38.71 | I135: 第四面试室 | K135: 0.00 | L135: 0.00 | M135: 38.71 | P135: 面试缺考
A136: 05 | B136: 专职网格员 | C136: 纳雍县宣慰街道 | D136: 龙丽 | E136: 女 | F136: 202310927 | G136: 63.16 | H136: 37.90 | I136: 第四面试室 | K136: 0.00 | L136: 0.00 | M136: 37.90 | P136: 面试缺考
A137: 05 | B137: 专职网格员 | C137: 纳雍县宣慰街道 | D137: 胡香 | E137: 女 | F137: 202310718 | G137: 63.12 | H137: 37.87 | I137: 第四面试室 | K137: 0.00 | L137: 0.00 | M137: 37.87 | P137: 面试缺考
A138: 06 | B138: 专职网格员 | C138: 纳雍县雍熙街道 | D138: 李飘飘 | E138: 女 | F138: 202310105 | G138: 76.90 | H138: 46.14 | I138: 第五面试室 | J138: 14 | K138: 83.80 | L138: 33.52 | M138: 79.66 | N138: 1 | O138: 是
A139: 06 | B139: 专职网格员 | C139: 纳雍县雍熙街道 | D139: 王立宏 | E139: 男 | F139: 202310910 | G139: 75.12 | H139: 45.07 | I139: 第五面试室 | J139: 37 | K139: 81.43 | L139: 32.57 | M139: 77.64 | N139: 2 | O139: 是
A140: 06 | B140: 专职网格员 | C140: 纳雍县雍熙街道 | D140: 许琴 | E140: 女 | F140: 202311414 | G140: 77.83 | H140: 46.70 | I140: 第五面试室 | J140: 8 | K140: 76.14 | L140: 30.46 | M140: 77.15 | N140: 3 | O140: 是
A141: 06 | B141: 专职网格员 | C141: 纳雍县雍熙街道 | D141: 勾彬旭 | E141: 男 | F141: 202311305 | G141: 71.45 | H141: 42.87 | I141: 第五面试室 | J141: 2 | K141: 83.80 | L141: 33.52 | M141: 76.39 | N141: 4 | O141: 是
A142: 06 | B142: 专职网格员 | C142: 纳雍县雍熙街道 | D142: 伍靖林 | E142: 男 | F142: 202311704 | G142: 71.45 | H142: 42.87 | I142: 第五面试室 | J142: 9 | K142: 83.40 | L142: 33.36 | M142: 76.23 | N142: 5 | O142: 是
A143: 06 | B143: 专职网格员 | C143: 纳雍县雍熙街道 | D143: 龙一明 | E143: 男 | F143: 202310205 | G143: 71.46 | H143: 42.88 | I143: 第五面试室 | J143: 1 | K143: 82.73 | L143: 33.09 | M143: 75.97 | N143: 6 | O143: 是
A144: 06 | B144: 专职网格员 | C144: 纳雍县雍熙街道 | D144: 陈丽丹 | E144: 女 | F144: 202311721 | G144: 69.23 | H144: 41.54 | I144: 第五面试室 | J144: 11 | K144: 84.64 | L144: 33.86 | M144: 75.39 | N144: 7 | O144: 是
A145: 06 | B145: 专职网格员 | C145: 纳雍县雍熙街道 | D145: 张慧 | E145: 女 | F145: 202311910 | G145: 71.94 | H145: 43.16 | I145: 第五面试室 | J145: 40 | K145: 79.34 | L145: 31.74 | M145: 74.90 | N145: 8 | O145: 是
A146: 06 | B146: 专职网格员 | C146: 纳雍县雍熙街道 | D146: 张英 | E146: 女 | F146: 202311008 | G146: 68.90 | H146: 41.34 | I146: 第五面试室 | J146: 6 | K146: 83.49 | L146: 33.40 | M146: 74.74 | N146: 9 | O146: 是
A147: 06 | B147: 专职网格员 | C147: 纳雍县雍熙街道 | D147: 李健 | E147: 男 | F147: 202310811 | G147: 72.39 | H147: 43.43 | I147: 第五面试室 | J147: 43 | K147: 77.14 | L147: 30.86 | M147: 74.29 | N147: 10 | O147: 是
A148: 06 | B148: 专职网格员 | C148: 纳雍县雍熙街道 | D148: 胡兴龙 | E148: 男 | F148: 202310114 | G148: 71.00 | H148: 42.60 | I148: 第五面试室 | J148: 17 | K148: 79.05 | L148: 31.62 | M148: 74.22 | N148: 11 | O148: 是
A149: 06 | B149: 专职网格员 | C149: 纳雍县雍熙街道 | D149: 王荣象 | E149: 男 | F149: 202310308 | G149: 70.89 | H149: 42.53 | I149: 第五面试室 | J149: 15 | K149: 78.95 | L149: 31.58 | M149: 74.11 | N149: 12 | O149: 是
A150: 06 | B150: 专职网格员 | C150: 纳雍县雍熙街道 | D150: 朱霞 | E150: 女 | F150: 202311013 | G150: 69.13 | H150: 41.48 | I150: 第五面试室 | J150: 36 | K150: 81.54 | L150: 32.62 | M150: 74.09 | N150: 13 | O150: 是
A151: 06 | B151: 专职网格员 | C151: 纳雍县雍熙街道 | D151: 王丽 | E151: 女 | F151: 202310619 | G151: 70.99 | H151: 42.59 | I151: 第五面试室 | J151: 16 | K151: 78.12 | L151: 31.25 | M151: 73.84 | N151: 14 | O151: 是
A152: 06 | B152: 专职网格员 | C152: 纳雍县雍熙街道 | D152: 唐蔷薇 | E152: 女 | F152: 202311422 | G152: 68.05 | H152: 40.83 | I152: 第五面试室 | J152: 29 | K152: 82.29 | L152: 32.92 | M152: 73.75 | N152: 15 | O152: 是
A153: 06 | B153: 专职网格员 | C153: 纳雍县雍熙街道 | D153: 黄嵩 | E153: 男 | F153: 202310101 | G153: 69.28 | H153: 41.57 | I153: 第五面试室 | J153: 38 | K153: 78.87 | L153: 31.55 | M153: 73.12
A154: 06 | B154: 专职网格员 | C154: 纳雍县雍熙街道 | D154: 李亚梅 | E154: 女 | F154: 202312021 | G154: 69.45 | H154: 41.67 | I154: 第五面试室 | J154: 33 | K154: 78.02 | L154: 31.21 | M154: 72.88
A155: 06 | B155: 专职网格员 | C155: 纳雍县雍熙街道 | D155: 阮建 | E155: 男 | F155: 202310621 | G155: 69.12 | H155: 41.47 | I155: 第五面试室 | J155: 10 | K155: 77.78 | L155: 31.11 | M155: 72.58
A156: 06 | B156: 专职网格员 | C156: 纳雍县雍熙街道 | D156: 王何 | E156: 女 | F156: 202311612 | G156: 68.51 | H156: 41.11 | I156: 第五面试室 | J156: 20 | K156: 78.65 | L156: 31.46 | M156: 72.57
A157: 06 | B157: 专职网格员 | C157: 纳雍县雍熙街道 | D157: 杨见华 | E157: 男 | F157: 202311508 | G157: 68.90 | H157: 41.34 | I157: 第五面试室 | J157: 12 | K157: 77.98 | L157: 31.19 | M157: 72.53
A158: 06 | B158: 专职网格员 | C158: 纳雍县雍熙街道 | D158: 王家伟 | E158: 男 | F158: 202311503 | G158: 67.62 | H158: 40.57 | I158: 第五面试室 | J158: 45 | K158: 79.74 | L158: 31.90 | M158: 72.47
A159: 06 | B159: 专职网格员 | C159: 纳雍县雍熙街道 | D159: 田佳佳 | E159: 女 | F159: 202311812 | G159: 67.30 | H159: 40.38 | I159: 第五面试室 | J159: 34 | K159: 78.91 | L159: 31.56 | M159: 71.94
A160: 06 | B160: 专职网格员 | C160: 纳雍县雍熙街道 | D160: 邓雨燃 | E160: 女 | F160: 202310708 | G160: 66.83 | H160: 40.10 | I160: 第五面试室 | J160: 25 | K160: 79.38 | L160: 31.75 | M160: 71.85
A161: 06 | B161: 专职网格员 | C161: 纳雍县雍熙街道 | D161: 胡成 | E161: 男 | F161: 202311217 | G161: 68.22 | H161: 40.93 | I161: 第五面试室 | J161: 26 | K161: 77.22 | L161: 30.89 | M161: 71.82
A162: 06 | B162: 专职网格员 | C162: 纳雍县雍熙街道 | D162: 袁屹 | E162: 男 | F162: 202310124 | G162: 66.00 | H162: 39.60 | I162: 第五面试室 | J162: 30 | K162: 79.51 | L162: 31.80 | M162: 71.40
A163: 06 | B163: 专职网格员 | C163: 纳雍县雍熙街道 | D163: 方琳 | E163: 女 | F163: 202310912 | G163: 66.34 | H163: 39.80 | I163: 第五面试室 | J163: 42 | K163: 78.54 | L163: 31.42 | M163: 71.22
A164: 06 | B164: 专职网格员 | C164: 纳雍县雍熙街道 | D164: 张伦 | E164: 男 | F164: 202311808 | G164: 66.83 | H164: 40.10 | I164: 第五面试室 | J164: 19 | K164: 77.70 | L164: 31.08 | M164: 71.18
A165: 06 | B165: 专职网格员 | C165: 纳雍县雍熙街道 | D165: 童第银 | E165: 女 | F165: 202311905 | G165: 66.74 | H165: 40.04 | I165: 第五面试室 | J165: 44 | K165: 77.82 | L165: 31.13 | M165: 71.17
A166: 06 | B166: 专职网格员 | C166: 纳雍县雍熙街道 | D166: 陈丽 | E166: 女 | F166: 202311930 | G166: 65.16 | H166: 39.10 | I166: 第五面试室 | J166: 28 | K166: 79.90 | L166: 31.96 | M166: 71.06
A167: 06 | B167: 专职网格员 | C167: 纳雍县雍熙街道 | D167: 理想 | E167: 男 | F167: 202311316 | G167: 65.05 | H167: 39.03 | I167: 第五面试室 | J167: 24 | K167: 79.85 | L167: 31.94 | M167: 70.97
A168: 06 | B168: 专职网格员 | C168: 纳雍县雍熙街道 | D168: 代丽雪 | E168: 女 | F168: 202310130 | G168: 64.72 | H168: 38.83 | I168: 第五面试室 | J168: 41 | K168: 79.98 | L168: 31.99 | M168: 70.82
A169: 06 | B169: 专职网格员 | C169: 纳雍县雍熙街道 | D169: 李晓焰 | E169: 女 | F169: 202311728 | G169: 65.68 | H169: 39.41 | I169: 第五面试室 | J169: 13 | K169: 77.31 | L169: 30.92 | M169: 70.33
A170: 06 | B170: 专职网格员 | C170: 纳雍县雍熙街道 | D170: 蒙禹东 | E170: 男 | F170: 202310117 | G170: 64.45 | H170: 38.67 | I170: 第五面试室 | J170: 21 | K170: 78.29 | L170: 31.32 | M170: 69.99
A171: 06 | B171: 专职网格员 | C171: 纳雍县雍熙街道 | D171: 胡雨碟 | E171: 女 | F171: 202311708 | G171: 69.02 | H171: 41.41 | I171: 第五面试室 | J171: 7 | K171: 70.76 | L171: 28.30 | M171: 69.72
A172: 06 | B172: 专职网格员 | C172: 纳雍县雍熙街道 | D172: 陈艳敏 | E172: 女 | F172: 202310122 | G172: 64.56 | H172: 38.74 | I172: 第五面试室 | J172: 39 | K172: 76.70 | L172: 30.68 | M172: 69.42
A173: 06 | B173: 专职网格员 | C173: 纳雍县雍熙街道 | D173: 余忠亮 | E173: 女 | F173: 202311302 | G173: 65.11 | H173: =G173*0.6 -> 39.07 | I173: 第五面试室 | J173: 35 | K173: 29.92 | L173: =K173*0.4 -> 11.97 | M173: =H173+L173 -> 51.03
A174: 06 | B174: 专职网格员 | C174: 纳雍县雍熙街道 | D174: 宋领雁 | E174: 女 | F174: 202310518 | G174: 75.06 | H174: 45.04 | I174: 第五面试室 | K174: 0.00 | L174: 0.00 | M174: 45.04 | P174: 面试缺考
A175: 06 | B175: 专职网格员 | C175: 纳雍县雍熙街道 | D175: 蒙文强 | E175: 男 | F175: 202311003 | G175: 71.39 | H175: 42.83 | I175: 第五面试室 | K175: 0.00 | L175: 0.00 | M175: 42.83 | P175: 面试缺考
A176: 06 | B176: 专职网格员 | C176: 纳雍县雍熙街道 | D176: 陈聪 | E176: 男 | F176: 202311313 | G176: 67.84 | H176: 40.70 | I176: 第五面试室 | K176: 0.00 | L176: 0.00 | M176: 40.70 | P176: 面试缺考
A177: 06 | B177: 专职网格员 | C177: 纳雍县雍熙街道 | D177: 王艺璇 | E177: 女 | F177: 202311825 | G177: 67.62 | H177: 40.57 | I177: 第五面试室 | K177: 0.00 | L177: 0.00 | M177: 40.57 | P177: 面试缺考
A178: 06 | B178: 专职网格员 | C178: 纳雍县雍熙街道 | D178: 王念 | E178: 女 | F178: 202311022 | G178: 67.45 | H178: 40.47 | I178: 第五面试室 | K178: 0.00 | L178: 0.00 | M178: 40.47 | P178: 放弃面试
A179: 06 | B179: 专职网格员 | C179: 纳雍县雍熙街道 | D179: 李泓郴 | E179: 女 | F179: 202310904 | G179: 64.96 | H179: 38.98 | I179: 第五面试室 | K179: 0.00 | L179: 0.00 | M179: 38.98 | P179: 面试缺考
A180: 06 | B180: 专职网格员 | C180: 纳雍县雍熙街道 | D180: 杨燕 | E180: 女 | F180: 202311016 | G180: 64.85 | H180: 38.91 | I180: 第五面试室 | K180: 0.00 | L180: 0.00 | M180: 38.91 | P180: 面试缺考
A181: 06 | B181: 专职网格员 | C181: 纳雍县雍熙街道 | D181: 徐发庚 | E181: 男 | F181: 202310219 | G181: 64.50 | H181: 38.70 | I181: 第五面试室 | K181: 0.00 | L181: 0.00 | M181: 38.70 | P181: 面试缺考
A182: 06 | B182: 专职网格员 | C182: 纳雍县雍熙街道 | D182: 颜松 | E182: 女 | F182: 202310816 | G182: 64.45 | H182: 38.67 | I182: 第五面试室 | K182: 0.00 | L182: 0.00 | M182: 38.67 | P182: 面试缺考
